Workbook

Sheet 급여 입력
B1: 급여 계산 | K1: 기간 종료: | L1: 41372 | N1: 회사 이름: | P1: 신세계 통상 (주)
B3: ID | C3: 직원 이름 | D3: 정규 근무 시간 | E3: 휴가 시간 | F3: 병가 시간 | G3: 초과 근무 시간 | H3: 초과 근무 수당 | I3: 총 급여 | J3: 세금 공제 | K3: 기타 공제 | L3: 순 급여 | N3: 시급 | O3: 세제 | P3: 연방 공제 | Q3: 지방세 | R3: 소득세 | S3: 사회 보장세 | T3: 의료 보장세 | U3: 총 원천징수 | V3: 보험 공제 | W3: 기타 일반 공제 | X3: 총 일반 공제
B4: 1001 | C4: 박병재 | D4: 50 | E4: 5 | F4: 1 | I4: =SUM(Employees[[#This Row],[정규 근무 시간]:[병가 시간]])*Employees[[#This Row],[시급]]+Employees[[#This Row],[초과 근무 시간]]*Employees[[#This Row],[초과 근무 수당]] -> 560000 | J4: =Employees[[#This Row],[총 급여]]*Employees[[#This Row],[총 원천징수]] + Employees[[#This Row],[총 일반 공제]] -> 273080 | K4: 20000 | L4: =Employees[[#This Row],[총 급여]]-Employees[[#This Row],[세금 공제]]-Employees[[#This Row],[기타 공제]] -> 266920 | N4: 10000 | O4: 1 | P4: 4 | Q4: 0.023 | R4: 0.28 | S4: 0.063 | T4: 0.0145 | U4: =SUM(Employees[[#This Row],[지방세]:[의료 보장세]]) -> 0.3805 | V4: 20000 | W4: 40000 | X4: =SUM(Employees[[#This Row],[보험 공제]:[기타 일반 공제]]) -> 60000
B5: 1002 | C5: 강재석 | D5: 40 | I5: =SUM(Employees[[#This Row],[정규 근무 시간]:[병가 시간]])*Employees[[#This Row],[시급]]+Employees[[#This Row],[초과 근무 시간]]*Employees[[#This Row],[초과 근무 수당]] -> 320000 | J5: =Employees[[#This Row],[총 급여]]*Employees[[#This Row],[총 원천징수]] + Employees[[#This Row],[총 일반 공제]] -> 131760 | L5: =Employees[[#This Row],[총 급여]]-Employees[[#This Row],[세금 공제]]-Employees[[#This Row],[기타 공제]] -> 188240 | N5: 8000 | O5: 1 | P5: 1 | Q5: 0.023 | R5: 0.28 | S5: 0.063 | T5: 0.0145 | U5: =SUM(Employees[[#This Row],[지방세]:[의료 보장세]]) -> 0.3805 | V5: - | W5: 10000 | X5: =SUM(Employees[[#This Row],[보험 공제]:[기타 일반 공제]]) -> 10000
B6: 1003 | C6: 박영일 | D6: 35 | E6: 3 | I6: =SUM(Employees[[#This Row],[정규 근무 시간]:[병가 시간]])*Employees[[#This Row],[시급]]+Employees[[#This Row],[초과 근무 시간]]*Employees[[#This Row],[초과 근무 수당]] -> 532000 | J6: =Employees[[#This Row],[총 급여]]*Employees[[#This Row],[총 원천징수]] + Employees[[#This Row],[총 일반 공제]] -> 240426 | L6: =Employees[[#This Row],[총 급여]]-Employees[[#This Row],[세금 공제]]-Employees[[#This Row],[기타 공제]] -> 291574 | N6: 14000 | O6: 1 | P6: 3 | Q6: 0.023 | R6: 0.28 | S6: 0.063 | T6: 0.0145 | U6: =SUM(Employees[[#This Row],[지방세]:[의료 보장세]]) -> 0.3805 | V6: 18000 | W6: 20000 | X6: =SUM(Employees[[#This Row],[보험 공제]:[기타 일반 공제]]) -> 38000
B7: 1008 | C7: 천자룡 | D7: 50 | E7: 5 | F7: 1 | I7: =SUM(Employees[[#This Row],[정규 근무 시간]:[병가 시간]])*Employees[[#This Row],[시급]]+Employees[[#This Row],[초과 근무 시간]]*Employees[[#This Row],[초과 근무 수당]] -> 1120000 | J7: =Employees[[#This Row],[총 급여]]*Employees[[#This Row],[총 원천징수]] + Employees[[#This Row],[총 일반 공제]] -> 441160 | L7: =Employees[[#This Row],[총 급여]]-Employees[[#This Row],[세금 공제]]-Employees[[#This Row],[기타 공제]] -> 678840 | N7: 20000 | O7: 1 | P7: 0 | Q7: 0.023 | R7: 0.28 | S7: 0.063 | T7: 0.0145 | U7: =SUM(Employees[[#This Row],[지방세]:[의료 보장세]]) -> 0.3805 | V7: 15000 | X7: =SUM(Employees[[#This Row],[보험 공제]:[기타 일반 공제]]) -> 15000
B8: 1011 | C8: 오현아 | D8: 40 | G8: 2 | H8: 15000 | I8: =SUM(Employees[[#This Row],[정규 근무 시간]:[병가 시간]])*Employees[[#This Row],[시급]]+Employees[[#This Row],[초과 근무 시간]]*Employees[[#This Row],[초과 근무 수당]] -> 430000 | J8: =Employees[[#This Row],[총 급여]]*Employees[[#This Row],[총 원천징수]] + Employees[[#This Row],[총 일반 공제]] -> 223615 | L8: =Employees[[#This Row],[총 급여]]-Employees[[#This Row],[세금 공제]]-Employees[[#This Row],[기타 공제]] -> 206385 | N8: 10000 | O8: 1 | P8: 0 | Q8: 0.023 | R8: 0.28 | S8: 0.063 | T8: 0.0145 | U8: =SUM(Employees[[#This Row],[지방세]:[의료 보장세]]) -> 0.3805 | V8: 20000 | W8: 40000 | X8: =SUM(Employees[[#This Row],[보험 공제]:[기타 일반 공제]]) -> 60000
B9: 1012 | C9: 홍재석 | D9: 40 | E9: 5 | F9: 1 | I9: =SUM(Employees[[#This Row],[정규 근무 시간]:[병가 시간]])*Employees[[#This Row],[시급]]+Employees[[#This Row],[초과 근무 시간]]*Employees[[#This Row],[초과 근무 수당]] -> 552000 | J9: =Employees[[#This Row],[총 급여]]*Employees[[#This Row],[총 원천징수]] + Employees[[#This Row],[총 일반 공제]] -> 270036 | L9: =Employees[[#This Row],[총 급여]]-Employees[[#This Row],[세금 공제]]-Employees[[#This Row],[기타 공제]] -> 281964 | N9: 12000 | O9: 1 | P9: 4 | Q9: 0.023 | R9: 0.28 | S9: 0.063 | T9: 0.0145 | U9: =SUM(Employees[[#This Row],[지방세]:[의료 보장세]]) -> 0.3805 | V9: 20000 | W9: 40000 | X9: =SUM(Employees[[#This Row],[보험 공제]:[기타 일반 공제]]) -> 60000
B10: 1025 | C10: 한미순 | D10: 36 | F10: 2 | G10: 1 | H10: 18000 | I10: =SUM(Employees[[#This Row],[정규 근무 시간]:[병가 시간]])*Employees[[#This Row],[시급]]+Employees[[#This Row],[초과 근무 시간]]*Employees[[#This Row],[초과 근무 수당]] -> 474000 | J10: =Employees[[#This Row],[총 급여]]*Employees[[#This Row],[총 원천징수]] + Employees[[#This Row],[총 일반 공제]] -> 225357 | K10: 25000 | L10: =Employees[[#This Row],[총 급여]]-Employees[[#This Row],[세금 공제]]-Employees[[#This Row],[기타 공제]] -> 223643 | N10: 12000 | O10: 1 | P10: 2 | Q10: 0.023 | R10: 0.28 | S10: 0.063 | T10: 0.0145 | U10: =SUM(Employees[[#This Row],[지방세]:[의료 보장세]]) -> 0.3805 | V10: 25000 | W10: 20000 | X10: =SUM(Employees[[#This Row],[보험 공제]:[기타 일반 공제]]) -> 45000
B11: 1032 | C11: 박민수 | D11: 40 | E11: 5 | F11: 1 | I11: =SUM(Employees[[#This Row],[정규 근무 시간]:[병가 시간]])*Employees[[#This Row],[시급]]+Employees[[#This Row],[초과 근무 시간]]*Employees[[#This Row],[초과 근무 수당]] -> 460000 | J11: =Employees[[#This Row],[총 급여]]*Employees[[#This Row],[총 원천징수]] + Employees[[#This Row],[총 일반 공제]] -> 175030 | K11: 50000 | L11: =Employees[[#This Row],[총 급여]]-Employees[[#This Row],[세금 공제]]-Employees[[#This Row],[기타 공제]] -> 234970 | N11: 10000 | O11: 1 | P11: 3 | Q11: 0.023 | R11: 0.28 | S11: 0.063 | T11: 0.0145 | U11: =SUM(Employees[[#This Row],[지방세]:[의료 보장세]]) -> 0.3805 | X11: =SUM(Employees[[#This Row],[보험 공제]:[기타 일반 공제]]) -> 0
B12: 1049 | C12: 김재석 | D12: 40 | E12: 1 | I12: =SUM(Employees[[#This Row],[정규 근무 시간]:[병가 시간]])*Employees[[#This Row],[시급]]+Employees[[#This Row],[초과 근무 시간]]*Employees[[#This Row],[초과 근무 수당]] -> 615000 | J12: =Employees[[#This Row],[총 급여]]*Employees[[#This Row],[총 원천징수]] + Employees[[#This Row],[총 일반 공제]] -> 259007.5 | K12: 23000 | L12: =Employees[[#This Row],[총 급여]]-Employees[[#This Row],[세금 공제]]-Employees[[#This Row],[기타 공제]] -> 332992.5 | N12: 15000 | O12: 1 | P12: 2 | Q12: 0.023 | R12: 0.28 | S12: 0.063 | T12: 0.0145 | U12: =SUM(Employees[[#This Row],[지방세]:[의료 보장세]]) -> 0.3805 | V12: 25000 | X12: =SUM(Employees[[#This Row],[보험 공제]:[기타 일반 공제]]) -> 25000
B13: 합계 | C13: =SUBTOTAL(103,Employees[직원 이름]) -> 9 | D13: =SUBTOTAL(109,Employees[정규 근무 시간]) -> 371 | E13: =SUBTOTAL(109,Employees[휴가 시간]) -> 24 | F13: =SUBTOTAL(109,Employees[병가 시간]) -> 6 | G13: =SUBTOTAL(109,Employees[초과 근무 시간]) -> 3 | I13: =SUBTOTAL(109,Employees[총 급여]) -> 5063000 | J13: =SUBTOTAL(109,Employees[세금 공제]) -> 2239471.5 | K13: =SUBTOTAL(109,Employees[기타 공제]) -> 118000 | L13: =SUBTOTAL(109,Employees[순 급여]) -> 2705528.5 | V13: =SUBTOTAL(109,Employees[보험 공제]) -> 143000 | W13: =SUBTOTAL(109,Employees[기타 일반 공제]) -> 170000 | X13: =SUBTOTAL(109,Employees[총 일반 공제]) -> 313000

Sheet 명세서_서식 파일 (hidden)
C2: =CompanyName -> 신세계 통상 (주)
C3: 기간 | D3: =PeriodEnding -> 41372 | G3: 이름 | H3: =IFERROR(INDEX(Employees[직원 이름],Stub),"") -> 박병재 | K3: 직원 ID | L3: =IFERROR(INDEX(Employees[ID],Stub),"") -> 1001
C4: 세제 | E4: =IFERROR(INDEX(Employees[세제],Stub),"") -> 1 | G4: 연방 공제(W-4 양식, 미국의 경우) | I4: =IFERROR(INDEX(Employees[연방 공제],Stub),"") -> 4 | K4: 근무 시간 | M4: =IFERROR(INDEX(Employees[정규 근무 시간],Stub),"") -> 50
C5: 시간당 급여 | E5: =IFERROR(INDEX(Employees[시급],Stub),"") -> 10000 | G5: 초과 근무 수당 | I5: =IFERROR(INDEX(Employees[초과 근무 수당],Stub),"") -> 0 | K5: 병가 시간 | M5: =IFERROR(INDEX(Employees[병가 시간],Stub),"") -> 1
C6: 사회 보장세 | E6: =IFERROR(INDEX(Employees[사회 보장세],Stub) * INDEX(Employees[총 급여],Stub),"") -> 35280 | G6: 소득세 | I6: =IFERROR(INDEX(Employees[소득세],Stub) * INDEX(Employees[총 급여],Stub),"") -> 156800 | K6: 휴가 시간 | M6: =IFERROR(INDEX(Employees[휴가 시간],Stub),"") -> 5
C7: 의료 보장세 | E7: =IFERROR(INDEX(Employees[의료 보장세],Stub) * INDEX(Employees[총 급여],Stub),"") -> 8120 | G7: 지방세 | I7: =IFERROR(INDEX(Employees[지방세],Stub) * INDEX(Employees[총 급여],Stub),"") -> 12880 | K7: 초과 근무 시간 | M7: =IFERROR(INDEX(Employees[초과 근무 시간],Stub),"") -> 0
C8: 보험 공제 | E8: =IFERROR(INDEX(Employees[보험 공제],Stub),"") -> 20000 | G8: 기타 정규 공제 | I8: =IFERROR(INDEX(Employees[기타 일반 공제],Stub),"") -> 40000 | K8: 총 급여 | M8: =IFERROR(INDEX(Employees[총 급여],Stub),"") -> 560000
C9: 총 세금 | E9: =IFERROR(INDEX(Employees[세금 공제],Stub),"") -> 273080 | G9: 기타 공제 | I9: =IFERROR(INDEX(Employees[기타 공제],Stub),"") -> 20000 | K9: 총 세액 및 공제 | M9: =IFERROR(INDEX(Employees[세금 공제],Stub) + INDEX(Employees[기타 공제],Stub),"") -> 293080
C10: 일반 공제
K11: 순 급여 | M11: =IFERROR(INDEX(Employees[순 급여],Stub),"") -> 266920
C14: =CompanyName -> 신세계 통상 (주)
C15: 기간 | D15: =PeriodEnding -> 41372 | G15: 이름 | H15: =IFERROR(INDEX(Employees[직원 이름],Stub),"") -> 강재석 | K15: 직원 ID | L15: =IFERROR(INDEX(Employees[ID],Stub),"") -> 1002
C16: 세제 | E16: =IFERROR(INDEX(Employees[세제],Stub),"") -> 1 | G16: 연방 공제(W-4 양식, 미국의 경우) | I16: =IFERROR(INDEX(Employees[연방 공제],Stub),"") -> 1 | K16: 근무 시간 | M16: =IFERROR(INDEX(Employees[정규 근무 시간],Stub),"") -> 40
C17: 시간당 급여 | E17: =IFERROR(INDEX(Employees[시급],Stub),"") -> 8000 | G17: 초과 근무 수당 | I17: =IFERROR(INDEX(Employees[초과 근무 수당],Stub),"") -> 0 | K17: 병가 시간 | M17: =IFERROR(INDEX(Employees[병가 시간],Stub),"") -> 0
C18: 사회 보장세 | E18: =IFERROR(INDEX(Employees[사회 보장세],Stub) * INDEX(Employees[총 급여],Stub),"") -> 20160 | G18: 소득세 | I18: =IFERROR(INDEX(Employees[소득세],Stub) * INDEX(Employees[총 급여],Stub),"") -> 89600 | K18: 휴가 시간 | M18: =IFERROR(INDEX(Employees[휴가 시간],Stub),"") -> 0
C19: 의료 보장세 | E19: =IFERROR(INDEX(Employees[의료 보장세],Stub) * INDEX(Employees[총 급여],Stub),"") -> 4640 | G19: 지방세 | I19: =IFERROR(INDEX(Employees[지방세],Stub) * INDEX(Employees[총 급여],Stub),"") -> 7360 | K19: 초과 근무 시간 | M19: =IFERROR(INDEX(Employees[초과 근무 시간],Stub),"") -> 0
C20: 보험 공제 | E20: =IFERROR(INDEX(Employees[보험 공제],Stub),"") -> - | G20: 기타 정규 공제 | I20: =IFERROR(INDEX(Employees[기타 일반 공제],Stub),"") -> 10000 | K20: 총 급여 | M20: =IFERROR(INDEX(Employees[총 급여],Stub),"") -> 320000
C21: 총 세금 | E21: =IFERROR(INDEX(Employees[세금 공제],Stub),"") -> 131760 | G21: 기타 공제 | I21: =IFERROR(INDEX(Employees[기타 공제],Stub),"") -> 0 | K21: 총 세액 및 공제 | M21: =IFERROR(INDEX(Employees[세금 공제],Stub) + INDEX(Employees[기타 공제],Stub),"") -> 131760
C22: 일반 공제
K23: 순 급여 | M23: =IFERROR(INDEX(Employees[순 급여],Stub),"") -> 188240
C26: =CompanyName -> 신세계 통상 (주)
C27: 기간 | D27: =PeriodEnding -> 41372 | G27: 이름 | H27: =IFERROR(INDEX(Employees[직원 이름],Stub),"") -> 박영일 | K27: 직원 ID | L27: =IFERROR(INDEX(Employees[ID],Stub),"") -> 1003
C28: 세제 | E28: =IFERROR(INDEX(Employees[세제],Stub),"") -> 1 | G28: 연방 공제(W-4 양식, 미국의 경우) | I28: =IFERROR(INDEX(Employees[연방 공제],Stub),"") -> 3 | K28: 근무 시간 | M28: =IFERROR(INDEX(Employees[정규 근무 시간],Stub),"") -> 35
C29: 시간당 급여 | E29: =IFERROR(INDEX(Employees[시급],Stub),"") -> 14000 | G29: 초과 근무 수당 | I29: =IFERROR(INDEX(Employees[초과 근무 수당],Stub),"") -> 0 | K29: 병가 시간 | M29: =IFERROR(INDEX(Employees[병가 시간],Stub),"") -> 0
C30: 사회 보장세 | E30: =IFERROR(INDEX(Employees[사회 보장세],Stub) * INDEX(Employees[총 급여],Stub),"") -> 33516 | G30: 소득세 | I30: =IFERROR(INDEX(Employees[소득세],Stub) * INDEX(Employees[총 급여],Stub),"") -> 148960 | K30: 휴가 시간 | M30: =IFERROR(INDEX(Employees[휴가 시간],Stub),"") -> 3
C31: 의료 보장세 | E31: =IFERROR(INDEX(Employees[의료 보장세],Stub) * INDEX(Employees[총 급여],Stub),"") -> 7714 | G31: 지방세 | I31: =IFERROR(INDEX(Employees[지방세],Stub) * INDEX(Employees[총 급여],Stub),"") -> 12236 | K31: 초과 근무 시간 | M31: =IFERROR(INDEX(Employees[초과 근무 시간],Stub),"") -> 0
C32: 보험 공제 | E32: =IFERROR(INDEX(Employees[보험 공제],Stub),"") -> 18000 | G32: 기타 정규 공제 | I32: =IFERROR(INDEX(Employees[기타 일반 공제],Stub),"") -> 20000 | K32: 총 급여 | M32: =IFERROR(INDEX(Employees[총 급여],Stub),"") -> 532000
C33: 총 세금 | E33: =IFERROR(INDEX(Employees[세금 공제],Stub),"") -> 240426 | G33: 기타 공제 | I33: =IFERROR(INDEX(Employees[기타 공제],Stub),"") -> 0 | K33: 총 세액 및 공제 | M33: =IFERROR(INDEX(Employees[세금 공제],Stub) + INDEX(Employees[기타 공제],Stub),"") -> 240426
C34: 일반 공제
K35: 순 급여 | M35: =IFERROR(INDEX(Employees[순 급여],Stub),"") -> 291574
C38: =CompanyName -> 신세계 통상 (주)
C39: 기간 | D39: =PeriodEnding -> 41372 | G39: 이름 | H39: =IFERROR(INDEX(Employees[직원 이름],Stub),"") -> 천자룡 | K39: 직원 ID | L39: =IFERROR(INDEX(Employees[ID],Stub),"") -> 1008
C40: 세제 | E40: =IFERROR(INDEX(Employees[세제],Stub),"") -> 1 | G40: 연방 공제(W-4 양식, 미국의 경우) | I40: =IFERROR(INDEX(Employees[연방 공제],Stub),"") -> 0 | K40: 근무 시간 | M40: =IFERROR(INDEX(Employees[정규 근무 시간],Stub),"") -> 50
C41: 시간당 급여 | E41: =IFERROR(INDEX(Employees[시급],Stub),"") -> 20000 | G41: 초과 근무 수당 | I41: =IFERROR(INDEX(Employees[초과 근무 수당],Stub),"") -> 0 | K41: 병가 시간 | M41: =IFERROR(INDEX(Employees[병가 시간],Stub),"") -> 1
C42: 사회 보장세 | E42: =IFERROR(INDEX(Employees[사회 보장세],Stub) * INDEX(Employees[총 급여],Stub),"") -> 70560 | G42: 소득세 | I42: =IFERROR(INDEX(Employees[소득세],Stub) * INDEX(Employees[총 급여],Stub),"") -> 313600 | K42: 휴가 시간 | M42: =IFERROR(INDEX(Employees[휴가 시간],Stub),"") -> 5
C43: 의료 보장세 | E43: =IFERROR(INDEX(Employees[의료 보장세],Stub) * INDEX(Employees[총 급여],Stub),"") -> 16240 | G43: 지방세 | I43: =IFERROR(INDEX(Employees[지방세],Stub) * INDEX(Employees[총 급여],Stub),"") -> 25760 | K43: 초과 근무 시간 | M43: =IFERROR(INDEX(Employees[초과 근무 시간],Stub),"") -> 0
C44: 보험 공제 | E44: =IFERROR(INDEX(Employees[보험 공제],Stub),"") -> 15000 | G44: 기타 정규 공제 | I44: =IFERROR(INDEX(Employees[기타 일반 공제],Stub),"") -> 0 | K44: 총 급여 | M44: =IFERROR(INDEX(Employees[총 급여],Stub),"") -> 1120000
C45: 총 세금 | E45: =IFERROR(INDEX(Employees[세금 공제],Stub),"") -> 441160 | G45: 기타 공제 | I45: =IFERROR(INDEX(Employees[기타 공제],Stub),"") -> 0 | K45: 총 세액 및 공제 | M45: =IFERROR(INDEX(Employees[세금 공제],Stub) + INDEX(Employees[기타 공제],Stub),"") -> 441160
C46: 일반 공제
K47: 순 급여 | M47: =IFERROR(INDEX(Employees[순 급여],Stub),"") -> 678840
